bitfinex-derivatives/quotes_BTCF0:USTF0_20250504
["timestamp","ask_amount","ask_price","bid_price","bid_amount"]
[1746350147647,0.3090708,95647.0,95636.0,0.2090938]
[1746350147848,0.8820308,95647.0,95636.0,0.2090938]
[1746350148049,0.9865828,95647.0,95637.0,0.2090917]
[1746350148350,1.1045828,95647.0,95636.0,0.2090939]
[1746350148545,1.1684828,95647.0,95636.0,0.2090939]
[1746350148743,1.2306828,95647.0,95645.0,0.00104553]
[1746350148943,1.1038801,95647.0,95642.0,0.01568]
[1746350149152,0.209108,95630.0,95629.0,0.42222104]
[1746350149449,0.309108,95630.0,95629.0,0.35311334]
[1746350149650,0.309108,95630.0,95629.0,0.21311334]
[1746350150349,0.371508,95630.0,95629.0,0.42222354]
[1746350151048,0.371508,95630.0,95629.0,0.45222354]
[1746350151453,0.371508,95630.0,95629.0,0.45522354]
[1746350152350,0.219108,95630.0,95629.0,0.45822354]
[1746350152551,0.209108,95630.0,95629.0,0.45822354]
[1746350152754,0.209108,95630.0,95629.0,0.52372354]
[1746350153250,0.09676,95633.0,95629.0,0.31461334]
[1746350153551,0.0237163,95636.0,95635.0,0.209097]
[1746350153744,0.03,95636.0,95635.0,0.349097]
[1746350154250,0.05385154,95636.0,95635.0,0.349097]
[1746350155241,0.26294644,95636.0,95635.0,0.349097]
[1746350155449,0.26294644,95636.0,95635.0,0.351097]
[1746350156050,0.26294644,95636.0,95635.0,0.353097]
[1746350168462,0.26294644,95636.0,95635.0,0.385297]
[1746350169664,0.23294644,95636.0,95635.0,0.417097]
[1746350169855,0.25294644,95636.0,95635.0,0.417097]
[1746350170057,0.25294644,95636.0,95635.0,0.208]
[1746350170770,0.25294644,95636.0,95635.0,0.417097]
[1746350173264,0.37094644,95636.0,95635.0,0.417097]
[1746350176164,0.25294644,95636.0,95635.0,0.417097]
[1746350177168,0.37094644,95636.0,95635.0,0.417097]
[1746350183168,0.138,95636.0,95635.0,0.417097]
[1746350183370,0.118,95636.0,95635.0,1.917097]
[1746350183574,0.07977687,95643.0,95642.0,0.2090817]
[1746350183774,0.07977687,95643.0,95642.0,0.7679639]
[1746350184575,0.34885637,95643.0,95642.0,0.15]
[1746350185162,0.53085637,95643.0,95642.0,0.15]
[1746350185665,0.53085637,95643.0,95642.0,0.3590817]
[1746350185867,0.4510795,95643.0,95642.0,0.3590817]
[1746350190779,0.242,95643.0,95642.0,0.7198817]
[1746350191180,0.4510795,95643.0,95642.0,0.7519817]
[1746350192403,0.182,95643.0,95642.0,0.7519817]
[1746350192604,0.1504,95643.0,95642.0,0.7819817]
[1746350192808,0.118,95643.0,95642.0,0.7819817]
[1746350193109,0.118,95643.0,95642.0,0.83005135]
[1746350193407,0.118,95643.0,95642.0,0.86205135]
[1746350196499,0.118,95643.0,95642.0,0.86605135]
[1746350197609,0.118,95643.0,95642.0,0.8179817]
[1746350198109,0.118,95643.0,95642.0,0.87000323]
[1746350198413,0.118,95643.0,95642.0,0.8179817]
[1746350198711,0.118,95643.0,95642.0,0.8169817]
[1746350198912,0.118,95643.0,95642.0,0.8199817]
[1746350201512,0.118,95643.0,95642.0,0.8189817]
[1746350201813,0.118,95643.0,95642.0,0.8179817]
[1746350203412,0.118,95643.0,95642.0,0.86598539]
[1746350204814,0.118,95643.0,95642.0,0.8179817]
[1746350205408,0.118,95643.0,95642.0,0.86598166]
[1746350206806,0.118,95643.0,95642.0,0.7879817]
[1746350207207,0.118,95643.0,95642.0,0.8379817]
[1746350213120,0.118,95643.0,95642.0,0.88598849]
[1746350217015,0.118,95643.0,95642.0,1.24678849]
[1746350221427,0.118,95643.0,95642.0,1.21468849]
[1746350222226,0.118,95643.0,95642.0,0.49308849]
[1746350222416,0.118,95643.0,95642.0,0.85388849]
[1746350222616,0.3270795,95643.0,95642.0,0.77188849]
[1746350223017,0.3270795,95643.0,95642.0,0.7238817]
[1746350223528,0.3907795,95643.0,95642.0,0.7238817]
[1746350223917,0.3907795,95643.0,95642.0,0.7218817]
[1746350224118,0.3907795,95643.0,95642.0,0.7208817]
[1746350225728,0.3907795,95643.0,95642.0,0.7689539]
[1746350226328,0.1817,95643.0,95642.0,0.7689539]
[1746350226725,0.3907795,95643.0,95642.0,0.7689539]
[1746350229534,0.5407795,95643.0,95642.0,0.7208817]
[1746350230932,0.5417795,95643.0,95642.0,0.7198817]
[1746350235933,0.44725601,95643.0,95638.0,0.01568]
[1746350236135,0.2090883,95639.0,95638.0,0.02568]
[1746350236343,0.2091145,95627.0,95622.0,0.00156867]
[1746350236639,0.3191145,95627.0,95626.0,0.5008]
[1746350237035,0.3191145,95627.0,95626.0,0.7099167]
[1746350237232,0.4361145,95627.0,95626.0,0.7099167]
[1746350237636,0.4672145,95627.0,95626.0,0.7099167]
[1746350237835,0.4672145,95627.0,95626.0,0.5008]
[1746350238042,0.4672145,95627.0,95626.0,0.5038]
[1746350238343,0.4672145,95627.0,95626.0,0.7159167]
[1746350239647,0.4883464,95627.0,95626.0,0.7159167]
[1746350242952,0.4883464,95627.0,95626.0,0.5068]
[1746350243155,0.4883464,95627.0,95626.0,0.146]
[1746350243453,0.4883464,95627.0,95626.0,0.006]
[1746350243753,0.5929184,95627.0,95626.0,0.006]
[1746350244054,0.4883464,95627.0,95626.0,0.006]
[1746350244252,0.5929184,95627.0,95626.0,0.006]
[1746350247054,0.9537184,95627.0,95626.0,0.006]
[1746350250063,0.8491464,95627.0,95626.0,0.006]
[1746350250268,0.8591464,95627.0,95626.0,0.006]
[1746350254864,1.0891464,95627.0,95626.0,0.006]
[1746350258666,1.0891464,95627.0,95626.0,0.0383]
[1746350260466,0.0522812,95623.0,95613.0,0.3608]
[1746350260659,0.2091364,95617.0,95616.0,0.0302]
[1746350260967,0.3691364,95617.0,95616.0,0.0302]
[1746350261167,0.4871364,95617.0,95616.0,0.0302]
[1746350261569,0.5514364,95617.0,95616.0,0.0302]
[1746350262067,0.5614364,95617.0,95616.0,0.0302]
[1746350262869,0.9222364,95617.0,95616.0,0.0302]
[1746350263061,0.9222364,95617.0,95616.0,0.0342]
[1746350264065,0.9222364,95617.0,95616.0,0.0372]
[1746350279377,0.9222364,95617.0,95612.0,0.01568]
[1746350279378,0.0522846,95616.0,95612.0,0.01568]
[1746350279579,0.2091451,95613.0,95612.0,0.00491734]
[1746350279877,0.4091451,95613.0,95612.0,0.00491734]
[1746350280072,0.5271451,95613.0,95612.0,0.00491734]
[1746350280572,0.5893451,95613.0,95612.0,0.00491734]
[1746350280874,0.5893451,95613.0,95612.0,0.00891734]
[1746350281372,0.5893451,95613.0,95612.0,0.01291734]
[1746350283078,0.5893451,95613.0,95612.0,0.01091734]
[1746350283978,0.5993451,95613.0,95612.0,0.01091734]
[1746350295175,0.6993451,95613.0,95612.0,0.006]
[1746350295380,0.7093451,95613.0,95612.0,0.006]
[1746350300084,0.2091539,95609.0,95608.0,0.0096801]
[1746350300385,0.2091758,95599.0,95598.0,0.03300613]
[1746350300572,0.5891758,95599.0,95598.0,0.04300613]
[1746350301085,0.7393758,95599.0,95598.0,0.04300613]
[1746350301778,0.7353758,95599.0,95598.0,0.04300613]
[1746350301977,0.7303758,95599.0,95598.0,0.03300613]
[1746350303276,0.7622758,95599.0,95598.0,0.03300613]
[1746350303680,0.8622758,95599.0,95598.0,0.03300613]
[1746350303880,0.2091845,95595.0,95594.0,0.01569]
[1746350304075,0.2091867,95594.0,95589.0,0.0633]
[1746350304276,0.6851867,95594.0,95589.0,0.0633]
[1746350305085,0.7991867,95594.0,95589.0,0.0633]
[1746350305477,0.7991867,95594.0,95593.0,0.00556923]
[1746350306079,0.8001867,95594.0,95593.0,0.00956923]
[1746350307285,0.90002071,95594.0,95593.0,0.00956923]
[1746350307987,0.91002071,95594.0,95593.0,0.00956923]
[1746350308689,0.2091955,95590.0,95589.0,0.07899]
[1746350308882,0.2091998,95588.0,95587.0,0.00156924]
[1746350309082,0.6049998,95588.0,95587.0,0.00156924]
[1746350309291,0.6671998,95588.0,95587.0,0.00156924]
[1746350309485,0.7284998,95588.0,95587.0,0.00156924]
[1746350309680,0.7384998,95588.0,95587.0,0.00156924]
[1746350309885,0.75598912,95588.0,95587.0,0.00156924]
[1746350310390,0.74608912,95588.0,95587.0,0.00156924]
[1746350310579,0.76598912,95588.0,95587.0,0.00156924]
[1746350310984,0.75598912,95588.0,95587.0,0.00156924]
[1746350311282,0.75698912,95588.0,95587.0,0.00456924]
[1746350311683,0.74708912,95588.0,95587.0,0.00456924]
[1746350311880,0.74708912,95588.0,95587.0,0.00856924]
[1746350311881,0.75698912,95588.0,95587.0,0.00856924]
[1746350312281,0.74708912,95588.0,95587.0,0.00856924]
[1746350312487,0.75698912,95588.0,95587.0,0.00856924]
[1746350313077,0.76698912,95588.0,95587.0,0.00856924]
[1746350313792,0.75708912,95588.0,95587.0,0.00856924]
[1746350314093,0.76698912,95588.0,95587.0,0.00856924]
[1746350314297,0.75708912,95588.0,95587.0,0.00856924]
[1746350314791,0.76698912,95588.0,95587.0,0.00856924]
[1746350315095,0.69928912,95588.0,95587.0,0.00856924]
[1746350315598,0.74698912,95588.0,95587.0,0.00856924]
[1746350315803,0.64698912,95588.0,95587.0,0.00856924]
[1746350316694,0.68478912,95588.0,95587.0,0.00856924]
[1746350318197,0.68478912,95588.0,95587.0,0.04166924]
[1746350318993,0.64698912,95588.0,95587.0,0.04166924]
[1746350322799,1.00778912,95588.0,95587.0,0.04166924]
[1746350323401,0.64698912,95588.0,95587.0,0.04166924]
[1746350323596,1.00778912,95588.0,95587.0,0.04166924]
[1746350333298,1.01778912,95588.0,95587.0,0.04166924]
[1746350337414,0.2092195,95579.0,95578.0,0.16048149]
[1746350337615,0.4636595,95579.0,95578.0,0.16048149]
[1746350338116,0.5816595,95579.0,95578.0,0.16048149]
[1746350338615,0.5826595,95579.0,95578.0,0.16648149]
[1746350338816,0.5836595,95579.0,95578.0,0.16948149]
[1746350339516,0.5836595,95579.0,95578.0,0.21760769]
[1746350340916,0.5836595,95579.0,95578.0,0.27230769]
[1746350342911,0.31,95579.0,95578.0,0.38230769]
[1746350343110,0.12,95579.0,95578.0,1.10773569]
[1746350343319,0.12,95579.0,95578.0,1.04960949]
[1746350343715,0.12,95579.0,95578.0,0.79960949]
[1746350344320,0.002,95579.0,95578.0,0.79960949]
[1746350347715,0.002,95579.0,95578.0,0.84771301]
[1746350353216,0.002,95579.0,95578.0,0.88771301]
[1746350355226,0.12,95579.0,95578.0,0.88771301]
[1746350356625,0.12,95579.0,95578.0,0.84771301]
[1746350356826,0.12,95579.0,95578.0,0.86771301]
[1746350357624,0.12,95579.0,95578.0,0.84771301]
[1746350358122,0.12,95579.0,95578.0,0.74308501]
[1746350358929,0.3610195,95579.0,95578.0,0.74308501]
[1746350359525,0.1518,95579.0,95578.0,0.74308501]
[1746350360823,0.1518,95579.0,95578.0,0.75308501]
[1746350362322,0.1818,95579.0,95578.0,0.74308501]
[1746350362525,0.2133,95579.0,95578.0,0.74308501]
[1746350364532,0.2133,95579.0,95578.0,0.72118501]
[1746350364725,0.2133,95579.0,95578.0,0.68838501]
[1746350371339,0.4225195,95579.0,95578.0,0.68838501]
[1746350373342,0.4225195,95579.0,95578.0,0.32758501]
[1746350374345,0.4225195,95579.0,95578.0,0.48741581]
[1746350377445,0.2133,95579.0,95578.0,0.48741581]
[1746350378346,0.2133,95579.0,95578.0,0.32758501]
[1746350385751,0.2133,95579.0,95578.0,0.48760912]
[1746350386851,0.2133,95579.0,95578.0,0.4395056]
[1746350387241,0.2133,95579.0,95578.0,0.4876368]
[1746350387654,0.2133,95579.0,95578.0,0.4395056]
[1746350390556,0.1833,95579.0,95578.0,0.4695056]
[1746350390754,0.1833,95579.0,95578.0,0.4395056]
[1746350390947,0.1833,95579.0,95578.0,0.30948149]
[1746350391149,0.1833,95579.0,95578.0,0.27948149]
[1746350391650,0.1833,95579.0,95578.0,0.28948149]
[1746350392649,0.1833,95579.0,95578.0,0.27948149]
[1746350393152,0.1833,95579.0,95578.0,0.64028149]
[1746350395256,0.1933,95579.0,95578.0,0.64028149]
[1746350396860,0.1933,95579.0,95578.0,0.68841889]
[1746350402170,0.1833,95579.0,95578.0,0.75841889]
[1746350402780,0.1833,95579.0,95578.0,0.81241889]
[1746350406774,0.1833,95579.0,95578.0,0.75841889]
[1746350411388,0.2833,95579.0,95578.0,0.32761889]
[1746350412679,0.1933,95579.0,95578.0,0.32761889]
[1746350415690,0.1833,95579.0,95578.0,0.32761889]
[1746350415887,0.1833,95579.0,95578.0,0.34761889]
[1746350416488,0.1833,95579.0,95578.0,0.32761889]
[1746350416690,0.1833,95579.0,95578.0,0.34761889]
[1746350417490,0.1833,95579.0,95578.0,0.32761889]
[1746350421492,0.1833,95579.0,95578.0,0.40761889]
[1746350421792,0.07989487,95597.0,95596.0,0.2091823]
[1746350421990,0.07989487,95597.0,95596.0,0.7781197]
[1746350422191,0.19789487,95597.0,95596.0,0.7781197]
[1746350422794,0.13693077,95597.0,95596.0,0.7781197]
[1746350422988,0.02004987,95597.0,95596.0,1.2468197]
[1746350423191,0.02004987,95597.0,95596.0,1.2790197]
[1746350423590,0.02004987,95597.0,95596.0,1.3020197]
[1746350424196,0.02104987,95597.0,95596.0,1.3030197]
[1746350426490,0.02104987,95597.0,95596.0,1.46281337]
[1746350427790,0.02104987,95597.0,95596.0,1.43061337]
[1746350429600,0.02104987,95597.0,95596.0,1.38247597]
[1746350430006,0.02104987,95597.0,95596.0,1.4304915]
[1746350431204,0.02104987,95597.0,95596.0,1.27069783]
[1746350431905,0.05324987,95597.0,95596.0,1.27069783]
[1746350432598,0.05324987,95597.0,95596.0,1.2226823]
[1746350433296,0.05324987,95597.0,95596.0,1.2706901]
[1746350433496,0.05324987,95597.0,95596.0,1.2226823]
[1746350433692,0.05324987,95597.0,95596.0,0.90988945]
[1746350433900,0.05324987,95597.0,95596.0,1.2226823]
[1746350437112,0.05324987,95597.0,95596.0,1.27069072]
[1746350438403,0.05324987,95597.0,95596.0,1.2226823]
[1746350444613,0.05324987,95597.0,95596.0,1.0135]
[1746350445414,0.05324987,95597.0,95596.0,1.2226823]
[1746350450712,0.05324987,95597.0,95596.0,1.2707215]
[1746350450911,0.0317,95598.0,95597.0,0.2091802]
[1746350451120,0.1497,95598.0,95597.0,0.5136802]
[1746350451614,0.1497,95598.0,95597.0,0.56172561]
[1746350452213,0.1507,95598.0,95597.0,0.56372561]
[1746350453616,0.2907,95598.0,95597.0,0.48372561]
[1746350453918,0.1507,95598.0,95597.0,0.41922561]
[1746350454819,0.449878,95598.0,95597.0,0.41922561]
[1746350455020,0.449878,95598.0,95597.0,0.3711802]
[1746350455216,0.804482,95598.0,95597.0,0.0622]
[1746350455414,0.804482,95598.0,95597.0,0.002]
[1746350455815,0.554482,95598.0,95597.0,0.002]
[1746350456011,0.2091867,95594.0,95593.0,0.01569]
[1746350456215,0.2091889,95593.0,95592.0,0.12258303]
[1746350456416,0.6339009,95593.0,95592.0,0.06952727]
[1746350457213,0.7519009,95593.0,95592.0,0.06952727]
[1746350458123,0.7509009,95593.0,95592.0,0.06952727]
[1746350458325,1.0009009,95593.0,95592.0,0.06952727]
[1746350458615,1.0327009,95593.0,95592.0,0.06952727]
[1746350458822,0.7827009,95593.0,95592.0,0.06952727]
[1746350459123,0.7837009,95593.0,95592.0,0.07052727]
[1746350459322,0.7837009,95593.0,95592.0,0.07252727]
[1746350459709,0.7837009,95593.0,95592.0,0.003]
[1746350460227,0.7837009,95593.0,95592.0,0.2121911]
[1746350460527,0.7737009,95593.0,95592.0,0.003]
[1746350461111,0.2091977,95589.0,95588.0,0.01569]
[1746350461321,0.2092064,95585.0,95584.0,0.2092079]
[1746350461514,0.4092064,95585.0,95584.0,0.2192079]
[1746350462127,0.5272064,95585.0,95584.0,0.2192079]
[1746350462622,0.5252064,95585.0,95584.0,0.2192079]
[1746350463427,0.5252064,95585.0,95584.0,0.2222079]
[1746350464921,0.5262064,95585.0,95584.0,0.2222079]
[1746350466828,0.5362064,95585.0,95584.0,0.2222079]
[1746350472627,0.6012864,95585.0,95584.0,0.2222079]
[1746350473336,0.5912864,95585.0,95584.0,0.2222079]
[1746350476842,0.38408,95585.0,95584.0,0.2222079]
[1746350477437,0.38408,95585.0,95584.0,0.2852079]
[1746350478540,0.5932864,95585.0,95584.0,0.2852079]
[1746350481942,0.38408,95585.0,95584.0,0.2852079]
[1746350482549,0.44658,95585.0,95584.0,0.2852079]
[1746350482844,0.6557864,95585.0,95584.0,0.2852079]
[1746350483643,0.5907064,95585.0,95584.0,0.2852079]
[1746350484945,0.3815,95585.0,95584.0,0.2852079]
[1746350485647,0.319,95585.0,95584.0,0.2852079]
[1746350486941,0.119,95585.0,95584.0,0.33325548]
[1746350487344,0.119,95585.0,95584.0,0.36325548]
[1746350488946,0.0882623,95585.0,95584.0,0.36325548]
[1746350489249,0.10655667,95600.0,95599.0,0.2091758]
[1746350489443,0.10655667,95600.0,95599.0,0.3591758]
[1746350489444,0.34655667,95600.0,95599.0,0.3591758]
[1746350490142,0.46455667,95600.0,95599.0,0.4228758]
[1746350490653,0.46655667,95600.0,95599.0,0.4228758]
[1746350492051,0.46855667,95600.0,95599.0,0.4228758]
[1746350493254,0.362,95600.0,95599.0,0.4228758]
[1746350498557,0.122,95600.0,95599.0,0.4228758]
[1746350498852,0.122,95600.0,95599.0,0.4628758]
[1746350499156,0.0015,95605.0,95604.0,0.2091648]
[1746350499355,0.0015,95605.0,95604.0,0.7199648]
[1746350500055,0.0015,95605.0,95604.0,0.7840648]
[1746350500255,0.1195,95605.0,95604.0,0.7840648]
[1746350500448,0.1225,95605.0,95604.0,0.7840648]
[1746350500949,0.1225,95605.0,95604.0,0.8140648]
[1746350501250,0.1225,95605.0,95604.0,0.7840648]
[1746350501452,0.1245,95605.0,95604.0,0.7840648]
[1746350509054,0.1245,95605.0,95604.0,0.7509648]
[1746350509259,0.5644626,95605.0,95604.0,0.3901648]
[1746350509455,0.6590586,95605.0,95604.0,0.15]
[1746350509753,0.2091823,95596.0,95595.0,0.01569]
[1746350509951,0.8477823,95596.0,95595.0,0.16569]
[1746350510152,0.2091977,95589.0,95581.0,0.209214]
[1746350510352,0.3991977,95589.0,95588.0,0.19995311]
[1746350510749,0.4601977,95589.0,95588.0,0.19995311]
[1746350511246,0.5781977,95589.0,95588.0,0.19995311]
[1746350511456,0.5781977,95589.0,95588.0,0.04]
[1746350511652,0.5781977,95589.0,95588.0,0.2491998]
[1746350512448,0.5771977,95589.0,95588.0,0.04]
[1746350513055,0.5771977,95589.0,95588.0,0.042]
[1746350513256,0.5781977,95589.0,95588.0,0.044]
[1746350513557,0.5781977,95589.0,95588.0,0.2531998]
[1746350515751,0.5781977,95589.0,95588.0,0.044]
[1746350517659,0.5781977,95589.0,95588.0,0.2531998]
[1746350518760,0.5781977,95589.0,95588.0,0.044]
[1746350519156,0.5781977,95589.0,95588.0,0.2531998]
[1746350520161,0.3392,95589.0,95588.0,0.2531998]
[1746350520348,0.309,95589.0,95588.0,0.2531998]
[1746350520553,0.119,95589.0,95588.0,0.2531998]
[1746350520753,0.119,95589.0,95588.0,0.2840998]
[1746350522054,0.119,95589.0,95588.0,0.2940998]
[1746350522254,0.119,95589.0,95588.0,0.2840998]
[1746350532268,0.119,95589.0,95588.0,0.39209463]
[1746350533364,0.0604,95602.0,95601.0,0.2091714]
[1746350533670,0.2895692,95602.0,95601.0,0.3691714]
[1746350534367,0.1984,95602.0,95601.0,0.3999714]
[1746350534568,0.2004,95602.0,95601.0,0.3999714]
[1746350534770,0.4095692,95602.0,95601.0,0.3999714]
[1746350536269,0.2004,95602.0,95601.0,0.3999714]
[1746350536469,0.2004,95602.0,95601.0,0.4320714]
[1746350536668,0.4105692,95602.0,95601.0,0.4320714]
[1746350537975,0.4105692,95602.0,95601.0,0.3999714]
[1746350538369,0.4105692,95602.0,95601.0,0.16]
[1746350538570,0.6305692,95602.0,95601.0,0.16]
[1746350539974,0.6305692,95602.0,95601.0,0.3691714]
[1746350545968,0.6305692,95602.0,95601.0,0.16]
[1746350546167,0.7451692,95602.0,95601.0,0.16]
[1746350547176,0.6405692,95602.0,95601.0,0.16]
[1746350547376,0.6305692,95602.0,95601.0,0.16]
[1746350551782,0.71045596,95602.0,95601.0,0.16]
[1746350554290,0.6305692,95602.0,95601.0,0.16]
[1746350562990,0.6964092,95602.0,95601.0,0.16]
[1746350563499,0.77629596,95602.0,95601.0,0.16]
[1746350564399,0.86629596,95602.0,95601.0,0.16]
[1746350566994,0.7864092,95602.0,95601.0,0.16]
[1746350567700,0.7564092,95602.0,95601.0,0.16]
[1746350572303,1.1172092,95602.0,95601.0,0.16]
[1746350572706,0.8172092,95602.0,95601.0,0.16]
[1746350572909,0.8272092,95602.0,95601.0,0.16]
[1746350575912,0.4664092,95602.0,95601.0,0.16]
[1746350576115,0.8272092,95602.0,95601.0,0.16]
[1746350578413,0.4664092,95602.0,95601.0,0.16]
[1746350578713,0.8272092,95602.0,95601.0,0.16]
[1746350579104,0.8272092,95602.0,95601.0,0.1913]
[1746350580605,0.4664092,95602.0,95601.0,0.1913]
[1746350580811,0.8272092,95602.0,95601.0,0.1913]
[1746350584912,0.9272092,95602.0,95601.0,0.1913]
[1746350585913,0.8795092,95602.0,95601.0,0.1913]
[1746350586815,0.209178,95598.0,95597.0,0.01569]
[1746350587003,0.559178,95598.0,95597.0,0.14]
[1746350587203,0.559178,95598.0,95597.0,0.1089459]
[1746350587204,0.857178,95598.0,95597.0,0.1089459]
[1746350587511,0.209202,95587.0,95586.0,0.0637]
[1746350587709,0.439202,95587.0,95586.0,0.1937]
[1746350588103,0.557202,95587.0,95586.0,0.1937]
[1746350588309,0.619702,95587.0,95586.0,0.1937]
[1746350588513,0.618702,95587.0,95586.0,0.1937]
[1746350589320,0.619702,95587.0,95586.0,0.1957]
[1746350590712,0.619702,95587.0,95586.0,0.1977]
[1746350600634,0.980502,95587.0,95586.0,0.1977]
[1746350601728,0.908002,95587.0,95586.0,0.1977]
[1746350601931,0.547202,95587.0,95586.0,0.1977]
[1746350606730,0.610402,95587.0,95586.0,0.1977]
[1746350607932,0.610402,95587.0,95586.0,0.03946576]
[1746350608631,0.4022,95587.0,95582.0,0.01569]
[1746350608932,0.2092108,95583.0,95582.0,0.16569]
[1746350609233,0.4772108,95583.0,95582.0,0.15]
[1746350609827,0.5398108,95583.0,95582.0,0.15]
[1746350610439,0.5598108,95583.0,95582.0,0.151]
[1746350610631,0.5398108,95583.0,95582.0,0.151]
[1746350611334,0.5398108,95583.0,95582.0,0.153]
[1746350611928,0.5498108,95583.0,95582.0,0.151]
[1746350612128,0.5398108,95583.0,95582.0,0.153]
[1746350612832,0.5408108,95583.0,95582.0,0.152]
[1746350614436,0.5508108,95583.0,95582.0,0.152]
[1746350615027,0.5408108,95583.0,95582.0,0.152]
[1746350621452,0.9016108,95583.0,95582.0,0.152]
[1746350625060,0.5408108,95583.0,95582.0,0.152]
[1746350625260,0.9016108,95583.0,95582.0,0.152]
[1746350626561,0.5408108,95583.0,95582.0,0.152]
[1746350626761,0.9016108,95583.0,95582.0,0.152]
[1746350627652,0.9316108,95583.0,95582.0,0.152]
[1746350627960,0.5708108,95583.0,95582.0,0.152]
[1746350628162,0.9316108,95583.0,95582.0,0.152]
[1746350629554,0.9016108,95583.0,95582.0,0.152]
[1746350631058,0.5408108,95583.0,95582.0,0.152]
[1746350631258,0.9016108,95583.0,95582.0,0.152]
[1746350633265,0.5408108,95583.0,95582.0,0.152]
[1746350633467,0.9016108,95583.0,95582.0,0.152]
[1746350644569,0.9116108,95583.0,95582.0,0.152]
[1746350645365,0.8616108,95583.0,95581.0,0.0325]
[1746350645569,0.8616108,95583.0,95567.0,0.20113842]
[1746350645570,0.2092436,95568.0,95567.0,0.20113842]
[1746350645872,0.3792436,95568.0,95567.0,0.38929325]
[1746350646071,0.4972436,95568.0,95567.0,0.38929325]
[1746350646369,0.5626436,95568.0,95567.0,0.38929325]
[1746350647173,0.5646436,95568.0,95567.0,0.39529325]
[1746350648275,0.57241286,95568.0,95567.0,0.39529325]
[1746350648878,0.58522034,95568.0,95567.0,0.34713842]
[1746350649067,0.58522034,95568.0,95567.0,0.39526315]
[1746350650070,0.58522034,95568.0,95567.0,0.19412473]
[1746350650377,0.58522034,95568.0,95567.0,0.146]
[1746350651675,1.11921674,95568.0,95544.0,0.37432975]
[1746350651873,0.209305,95540.0,95527.0,0.19144414]
[1746350652179,0.661985,95540.0,95539.0,0.28313001]
[1746350652371,0.651985,95540.0,95539.0,0.28313001]
[1746350652772,0.715385,95540.0,95539.0,0.28313001]
[1746350652971,0.707385,95540.0,95539.0,0.28313001]
[1746350653374,0.717385,95540.0,95539.0,0.28313001]
[1746350653571,0.720385,95540.0,95539.0,0.29113001]
[1746350654680,0.613405,95540.0,95539.0,0.29113001]
[1746350654876,0.353405,95540.0,95539.0,0.29113001]
[1746350655075,0.363405,95540.0,95539.0,0.108]
[1746350656469,0.362405,95540.0,95539.0,0.1]
[1746350656674,0.363405,95540.0,95539.0,0.1]
[1746350657079,0.362405,95540.0,95539.0,0.1]
[1746350660483,0.572405,95540.0,95539.0,0.1]
[1746350660678,0.662505,95540.0,95539.0,0.1]
[1746350660879,0.672405,95540.0,95539.0,0.1]
[1746350661082,0.662505,95540.0,95539.0,0.1]
[1746350661688,0.636905,95540.0,95539.0,0.1]
[1746350662078,0.635905,95540.0,95539.0,0.073]
[1746350665484,0.571405,95540.0,95539.0,0.073]
[1746350674502,0.0523295,95534.0,95527.0,0.2093326]
[1746350674703,0.2093334,95527.0,95526.0,0.2411356]
[1746350674904,0.2693334,95527.0,95526.0,0.3911356]
[1746350675096,0.178,95527.0,95526.0,0.3911356]
[1746350676701,0.39990313,95527.0,95526.0,0.3911356]
[1746350677007,0.2093356,95526.0,95507.0,0.06468]
[1746350677208,0.2153,95526.0,95525.0,0.01104684]
[1746350677411,0.4246356,95526.0,95525.0,0.00104684]
[1746350677907,0.2246356,95526.0,95525.0,0.00104684]
[1746350678107,0.3426356,95526.0,95525.0,0.00104684]
[1746350678694,0.3446356,95526.0,95525.0,0.00104684]
[1746350679306,0.12,95526.0,95525.0,0.00104684]
[1746350679512,0.4593356,95526.0,95525.0,0.00104684]
[1746350680198,0.25,95526.0,95525.0,0.33038464]
[1746350681110,0.25,95526.0,95525.0,0.36128464]
[1746350681111,0.082,95526.0,95525.0,0.36128464]
[1746350682105,0.06468,95532.0,95525.0,0.36128464]
[1746350682304,0.3608,95533.0,95525.0,0.36128464]
[1746350682305,0.30748,95533.0,95532.0,0.2093225]
[1746350682614,0.37987317,95533.0,95532.0,0.3293225]
[1746350683206,0.49787317,95533.0,95532.0,0.3922225]
[1746350683409,0.28557317,95533.0,95532.0,0.3922225]
[1746350684207,0.14,95533.0,95532.0,0.3922225]
[1746350684507,0.01246944,95536.0,95535.0,0.2093159]
[1746350684710,0.01,95536.0,95535.0,0.3493159]
[1746350685104,0.118,95536.0,95535.0,0.3493159]
[1746350685302,0.128,95536.0,95535.0,0.3493159]
[1746350685708,0.129,95536.0,95535.0,0.3523159]
[1746350685908,0.14154693,95536.0,95535.0,0.3523159]
[1746350686109,0.03692693,95539.0,95538.0,0.2093093]
[1746350686413,0.06692693,95539.0,95538.0,0.3593093]
[1746350686613,0.07909927,95539.0,95538.0,0.3593093]
[1746350687209,0.14456795,95548.0,95547.0,0.2092896]
[1746350687513,0.35154575,95548.0,95547.0,0.15]
[1746350688109,0.26954575,95548.0,95547.0,0.15]
[1746350688313,0.51263505,95548.0,95547.0,0.152]
[1746350688611,0.51263505,95548.0,95547.0,0.002]
[1746350688806,0.51263505,95548.0,95547.0,0.132]
[1746350689206,0.51731505,95548.0,95547.0,0.132]
[1746350689406,0.54841505,95548.0,95547.0,0.132]
[1746350689607,0.54841505,95548.0,95547.0,0.3412896]
[1746350690009,0.4460693,95548.0,95547.0,0.3412896]
[1746350690215,0.46641505,95548.0,95547.0,0.3412896]
[1746350690515,0.46641505,95548.0,95547.0,0.132]
[1746350690716,0.47881618,95548.0,95547.0,0.132]
[1746350691616,0.34349618,95548.0,95547.0,0.3412896]
[1746350692219,0.55278548,95548.0,95547.0,0.3412896]
[1746350692814,0.48278548,95548.0,95547.0,0.3412896]
[1746350693520,0.34746548,95548.0,95547.0,0.3412896]
[1746350693720,0.34746548,95548.0,95547.0,0.002]
[1746350694121,0.46546548,95548.0,95547.0,0.002]
[1746350694321,0.50761568,95548.0,95547.0,0.002]
[1746350694525,0.48690498,95548.0,95547.0,0.2112896]
[1746350695423,0.48690498,95548.0,95547.0,0.002]
[1746350696023,0.48690498,95548.0,95547.0,0.132]
[1746350696218,0.38248498,95548.0,95547.0,0.132]
[1746350696524,0.47780498,95548.0,95547.0,0.132]
[1746350696821,0.54248498,95548.0,95547.0,0.132]